bitfinex-derivatives/quotes_ETHF0:USTF0_20251118
["timestamp","ask_amount","ask_price","bid_price","bid_amount"]
[1763433357938,0.00494658,3027.9,3026.9,1.77734705]
[1763433358643,0.00494658,3027.9,3026.8,2.18507488]
[1763433359036,0.00494658,3027.9,3027.8,0.2364]
[1763433359542,0.00393548,3029.5,3027.8,9.5388]
[1763433359844,0.1509,3028.9,3027.5,0.1438]
[1763433360436,0.00393548,3029.5,3027.5,0.1438]
[1763433360740,0.00495483,3028.8,3028.2,0.14875483]
[1763433360955,0.00495483,3028.8,3028.2,1.92610188]
[1763433361740,0.00393548,3029.5,3028.6,1.77734705]
[1763433361941,1.15705703,3030.8,3029.6,0.0818]
[1763433362139,1.15705703,3031.3,3030.7,1.77734705]
[1763433362339,0.42052571,3032.4,3029.6,0.0818]
[1763433362340,0.1509,3031.7,3029.7,0.87389752]
[1763433362539,1.92824705,3031.7,3029.7,1.77734705]
[1763433362745,0.00495483,3031.0,3030.4,0.00495483]
[1763433362937,0.00922098,3031.0,3030.4,0.00858347]
[1763433363739,2.098e-05,3031.0,3030.8,1.77734705]
[1763433363942,0.1509,3032.4,3030.8,1.77734705]
[1763433364147,1.15705703,3033.3,3031.3,1.77734705]
[1763433364445,1.77734705,3032.1,3030.4,0.00858347]
[1763433364741,2.178,3032.0,3030.4,0.00858347]
[1763433364946,0.00495483,3031.5,3030.5,1.77734705]
[1763433365344,0.00495483,3031.5,3030.4,0.00858347]
[1763433365545,3.623,3031.4,3030.4,0.00858347]
[1763433366243,8.31295483,3031.5,3030.4,0.00858347]
[1763433367548,0.00495483,3031.5,3030.4,0.00858347]
[1763433369058,0.1509,3031.0,3029.1,1.77734705]
[1763433369249,1.77734705,3030.9,3028.9,0.0818]
[1763433369541,1.30795703,3031.0,3029.2,1.77734705]
[1763433369749,1.636,3030.9,3029.7,1.77734705]
[1763433369949,0.1509,3031.0,3029.7,1.78086874]
[1763433370145,8.2129,3031.0,3030.0,0.00495483]
[1763433370637,0.1509,3031.0,3030.0,0.00495483]
[1763433371240,0.00495483,3031.5,3030.0,0.00495483]
[1763433371739,1.48195483,3031.5,3030.0,0.00495483]
[1763433372346,2.63901186,3031.5,3030.0,0.00495483]
[1763433372649,1.15705703,3031.3,3030.0,0.00495483]
[1763433373455,3.585,3031.2,3030.0,0.00495483]
[1763433374047,0.1509,3031.0,3030.0,0.00495483]
[1763433375356,0.1509,3030.3,3029.7,0.00352169]
[1763433375541,1.30795703,3031.0,3029.7,0.00352169]
[1763433375542,0.1509,3031.0,3029.7,0.00352169]
[1763433375747,1.772,3030.9,3029.7,0.00352169]
[1763433376347,0.1509,3031.0,3030.0,0.00495483]
[1763433376647,3.408,3030.8,3030.0,0.00495483]
[1763433377555,8.305,3030.7,3030.0,0.00495483]
[1763433378148,0.00495483,3031.5,3030.0,0.00495483]
[1763433378149,1.16201186,3031.5,3030.0,0.00495483]
[1763433378353,2.89695483,3031.5,3030.0,0.00495483]
[1763433378655,3.33795483,3031.5,3030.0,0.00495483]
[1763433379553,3.73,3031.4,3030.0,0.00495483]
[1763433380257,3.916,3031.3,3030.0,0.00495483]
[1763433381047,3.308,3031.4,3030.0,0.00495483]
[1763433381257,1.16201186,3031.5,3028.3,0.87389752]
[1763433381258,0.0948,3030.3,3028.3,0.87389752]
[1763433381561,1.15705703,3030.1,3028.2,0.1438]
[1763433381756,2.682,3030.0,3027.6,0.87389752]
[1763433381952,0.1497,3029.6,3027.5,0.1438]
[1763433382255,0.00495483,3028.9,3027.5,0.14793207]
[1763433382456,2.649,3028.8,3027.5,0.14793207]
[1763433383158,0.15465483,3028.9,3027.5,0.14793207]
[1763433383454,0.00495483,3028.9,3027.5,0.14793207]
[1763433383658,0.00495483,3028.9,3027.9,1.9490482]
[1763433384248,0.00495483,3028.9,3027.5,0.14793207]
[1763433384755,2.33165483,3028.9,3027.5,0.14793207]
[1763433385559,2.33165483,3028.9,3027.5,0.00413207]
[1763433386544,0.15465483,3028.9,3027.5,0.00413207]
[1763433386750,2.387,3028.8,3027.5,0.00413207]
[1763433387147,0.15465483,3028.9,3027.5,0.14533207]
[1763433387761,0.00495483,3028.9,3027.5,0.14533207]
[1763433387950,0.00495483,3028.9,3027.9,1.9490482]
[1763433391552,0.00495483,3028.9,3028.7,0.03301801]
[1763433391752,0.15575483,3028.9,3027.5,0.14533207]
[1763433391953,0.00495483,3028.9,3027.8,1.9490482]
[1763433392765,0.00495483,3028.9,3028.3,1.9490482]
[1763433392969,2.08705703,3029.9,3028.3,1.9490482]
[1763433393167,3.5648,3030.3,3028.3,1.9490482]
[1763433393865,3.969,3030.2,3029.0,0.00495483]
[1763433394171,0.00495483,3029.6,3029.0,0.00495483]
[1763433396965,0.00495483,3029.6,3029.3,1.9490482]
[1763433397358,0.00495483,3029.6,3029.3,5.2498482]
[1763433397563,0.00495483,3029.6,3029.3,1.9490482]
[1763433398462,0.00256353,3030.3,3029.3,1.9490482]
[1763433399164,0.00256353,3030.3,3029.6,1.01913903]
[1763433399368,0.00751836,3030.3,3029.6,1.01913903]
[1763433399664,0.00751836,3030.3,3029.6,0.1412]
[1763433402763,0.00751836,3030.3,3030.2,0.2469]
[1763433402968,0.00751836,3030.3,3030.2,0.25094567]
[1763433404677,0.25551836,3030.3,3030.2,0.00404567]
[1763433404865,6.25551836,3030.3,3029.0,1.95400303]
[1763433405069,0.25551836,3030.3,3029.0,2.21589517]
[1763433405370,0.25551836,3030.3,3029.0,0.00495483]
[1763433405970,0.25551836,3030.3,3029.0,0.00849306]
[1763433406474,0.25551836,3030.3,3029.0,0.27123182]
[1763433408474,0.25551836,3030.3,3029.0,0.00849306]
[1763433411073,0.25551836,3030.3,3029.0,1.95754126]
[1763433412262,0.00751836,3030.3,3029.0,1.95754126]
[1763433412468,0.00751836,3030.3,3029.2,0.87793903]
[1763433412667,0.00751836,3030.3,3029.4,0.1412]
[1763433415774,0.00751836,3030.3,3029.0,0.00849306]
[1763433416177,0.248,3029.1,3029.0,0.00849306]
[1763433416582,0.1508,3030.0,3029.0,0.00849306]
[1763433416770,0.248,3029.1,3029.0,0.00849306]
[1763433416970,0.248,3029.1,3029.0,0.00353823]
[1763433417178,0.248,3029.1,3028.1,0.87793903]
[1763433417377,0.248,3029.1,3028.0,0.87793903]
[1763433417773,0.248,3029.1,3027.6,1.87322119]
[1763433417774,0.2503,3028.0,3027.6,0.1412]
[1763433417977,0.1483,3028.8,3027.5,1.13862746]
[1763433418185,0.00495483,3028.5,3027.8,0.00495483]
[1763433418988,0.2503,3027.9,3027.8,0.00495483]
[1763433420483,0.2503,3027.6,3027.5,0.00290361]
[1763433420687,0.2503,3026.9,3026.2,0.87793903]
[1763433420877,0.2503,3026.9,3025.7,0.87793903]
[1763433421081,0.2503,3026.9,3025.6,0.87793903]
[1763433421486,0.2503,3026.9,3025.4,0.87793903]
[1763433421693,0.1483,3026.4,3025.4,0.26232294]
[1763433421874,0.15075399,3026.4,3025.4,0.26232294]
[1763433422081,0.15075399,3026.4,3025.4,0.0029366]
[1763433422594,0.2503,3025.5,3025.4,0.0029366]
[1763433422891,2.16,3026.3,3024.0,2.96858723]
[1763433423086,2.16,3026.3,3024.0,0.1416]
[1763433423289,2.16,3026.3,3023.7,0.03307261]
[1763433423290,1.9490482,3026.1,3023.7,0.03307261]
[1763433423587,5.468,3026.3,3023.7,0.03307261]
[1763433423588,1.9490482,3025.1,3023.7,0.03307261]
[1763433423791,0.0989,3024.0,3023.7,4.479e-05]
[1763433424390,8.295,3024.5,3023.7,4.479e-05]
[1763433424583,0.1333,3024.0,3023.7,4.479e-05]
[1763433424784,0.13698615,3024.0,3023.7,4.479e-05]
[1763433425083,0.12198615,3024.0,3023.7,4.479e-05]
[1763433425485,0.08873793,3024.0,3023.7,4.479e-05]
[1763433426086,0.00368615,3024.0,3023.7,4.479e-05]
[1763433426489,0.13698615,3024.0,3023.7,4.479e-05]
[1763433427188,6.0,3023.9,3023.7,4.479e-05]
[1763433427389,6.0,3023.9,3021.2,0.1416]
[1763433427598,6.0,3023.9,3019.8,0.1416]
[1763433427599,1.9490482,3022.0,3019.8,0.1416]
[1763433427892,18.7786,3021.9,3019.8,0.1416]
[1763433428195,0.00496319,3021.2,3019.2,0.09064158]
[1763433428385,0.00865518,3021.2,3019.2,0.09407862]
[1763433428593,1.158,3021.1,3019.2,0.23567862]
[1763433428792,6.322,3021.0,3019.2,0.23567862]
[1763433428988,8.298,3020.9,3019.2,0.23567862]
[1763433429296,0.1126,3021.9,3019.2,0.23567862]
[1763433429488,0.1126,3021.9,3019.2,0.48967862]
[1763433429791,0.041351,3021.9,3019.2,0.48967862]
[1763433429998,4.339,3021.8,3019.2,0.48967862]
[1763433430192,0.041351,3021.9,3019.2,0.48967862]
[1763433430391,0.00496319,3020.9,3020.8,0.1416]
[1763433430596,0.0985,3023.2,3020.9,3.3096]
[1763433430798,0.015,3022.9,3020.9,3.3088]
[1763433430997,0.015,3022.9,3020.8,0.1416]
[1763433431399,0.8046,3022.6,3020.9,3.3088]
[1763433431691,0.00496319,3022.0,3020.8,0.1416]
[1763433432288,0.00300463,3022.6,3020.9,9.3096]
[1763433432592,0.1563,3024.0,3020.9,13.08440234]
[1763433432593,0.1483,3024.0,3020.9,13.08440234]
[1763433432795,0.1483,3024.0,3022.0,2.35851216]
[1763433433194,0.00496319,3023.3,3022.7,0.00496319]
[1763433433492,0.0083644,3023.3,3022.7,0.00741468]
[1763433434294,1.622,3024.4,3022.7,0.00741468]
[1763433434597,2.35851216,3025.9,3022.7,3.31381468]
[1763433434785,1.518,3024.4,3022.7,0.00741468]
[1763433435203,0.00496319,3023.9,3022.7,0.00741468]
[1763433435886,1.541,3023.8,3022.7,0.00741468]
[1763433436289,6.60296319,3023.9,3022.7,0.00741468]
[1763433436998,4.45996319,3023.9,3022.7,0.00741468]
[1763433437488,0.00496319,3023.9,3022.7,0.00741468]
[1763433439197,2.105,3023.8,3022.7,0.00741468]
[1763433439497,0.1489,3023.2,3021.3,0.1416]
[1763433439696,2.35851216,3022.6,3019.2,12.15534158]
[1763433439906,0.1489,3022.4,3019.2,12.15534158]
[1763433440087,12.242,3022.3,3019.2,12.15534158]
[1763433440289,0.1489,3022.4,3019.2,12.15534158]
[1763433440501,0.00496319,3021.5,3020.9,0.00496319]
[1763433440702,0.00921402,3021.5,3020.9,0.00496319]
[1763433441600,0.00921402,3021.5,3020.0,0.14481901]
[1763433441795,0.00921402,3021.5,3020.0,0.14891901]
[1763433442191,5.82621402,3021.5,3020.0,0.14891901]
[1763433442599,0.00921402,3021.5,3020.0,0.14891901]
[1763433442799,3.527,3021.4,3020.4,0.00496319]
[1763433443699,0.1487,3020.8,3020.0,0.00321901]
[1763433444000,6.522,3020.7,3019.2,0.09064158]
[1763433444391,0.1487,3020.8,3019.2,0.09064158]
[1763433444595,12.302,3020.7,3019.2,0.09064158]
[1763433444997,12.302,3020.7,3019.6,0.00496319]
[1763433445198,0.1487,3020.8,3019.6,0.00496319]
[1763433445498,1.35,3020.7,3019.6,0.00496319]
[1763433446295,0.1487,3020.8,3019.6,0.00496319]
[1763433446497,1.649,3020.7,3019.6,0.00496319]
[1763433446704,0.1487,3020.8,3019.6,0.00496319]
[1763433447005,11.927,3021.4,3019.6,0.00496319]
[1763433447192,0.349,3021.3,3019.6,0.00496319]
[1763433447798,6.253,3021.2,3019.6,0.00496319]
[1763433448003,0.00921402,3021.5,3019.6,0.00496319]
[1763433448210,8.307,3021.1,3019.6,0.00496319]
[1763433448504,0.00921402,3021.5,3019.6,0.00496319]
[1763433448799,0.00921402,3021.5,3020.0,0.1415]
[1763433449002,0.00921402,3021.5,3020.3,1.79082726]
[1763433449198,0.00921402,3021.5,3020.0,0.1415]
[1763433449199,0.00921402,3021.5,3020.8,1.93232726]
[1763433449704,0.00921402,3021.5,3020.1,1.79082726]
[1763433449998,0.00921402,3021.5,3020.0,0.1415]
[1763433450301,0.46421402,3021.5,3020.0,0.1415]
[1763433450699,0.00921402,3021.5,3020.1,1.79082726]
[1763433451494,0.00921402,3021.5,3020.0,0.1415]
[1763433451703,0.00921402,3021.5,3019.6,1.79579045]
[1763433452805,1.79082726,3021.3,3019.6,0.00496319]
[1763433453302,0.1492,3020.8,3019.6,0.00496319]
[1763433453498,1.79082726,3020.5,3019.6,0.00496319]
[1763433453702,0.1492,3020.8,3019.6,0.00496319]
[1763433453906,4.997,3020.4,3019.6,0.00496319]
[1763433454700,0.1492,3020.0,3019.6,0.00496319]
[1763433455405,1.15705703,3020.6,3019.6,0.00496319]
[1763433455600,0.1492,3020.8,3019.6,0.00496319]
[1763433457297,1.79082726,3020.5,3019.6,0.00496319]
[1763433458001,7.873,3020.7,3019.6,0.00496319]
[1763433458395,0.1492,3020.8,3019.6,0.00496319]
[1763433458710,0.00921402,3021.5,3020.0,1.93232726]
[1763433458901,0.00921402,3021.5,3020.0,0.1415]
[1763433459101,1.79082726,3021.4,3020.0,0.1415]
[1763433459618,0.00921402,3021.5,3020.0,0.1415]
[1763433466412,1.16627105,3021.5,3020.0,0.1415]
[1763433467311,0.00921402,3021.5,3020.0,0.1415]
[1763433467906,0.00921402,3021.5,3020.1,3.3104]
[1763433468111,1.15705703,3022.2,3021.2,0.1415]
[1763433468418,3.72805703,3022.6,3021.2,0.1415]
[1763433468622,2.571,3022.6,3021.2,0.1415]
[1763433469013,2.571,3022.6,3021.2,1.02449199]
[1763433469217,0.00496319,3022.2,3021.6,0.00496319]
[1763433469420,0.00378818,3022.6,3021.9,0.1415]
[1763433469620,1.15705703,3023.5,3021.9,0.1415]
[1763433469811,1.15705703,3023.5,3021.9,1.02449199]
[1763433470131,0.1492,3024.0,3022.3,0.88299199]
[1763433470132,1.15705703,3024.0,3022.3,0.88299199]
[1763433470321,1.30625703,3024.0,3022.1,0.88299199]
[1763433470519,0.00496319,3023.4,3022.1,0.88299199]
[1763433470818,0.00496319,3023.4,3022.2,4.19019199]
[1763433471019,0.00496319,3023.4,3022.2,0.88299199]
[1763433471210,0.00496319,3023.4,3023.3,0.1415]
[1763433471817,0.00496319,3023.4,3022.6,0.1415]
[1763433472415,0.00496319,3023.4,3021.9,1.02449199]
[1763433472416,0.00496319,3023.4,3021.9,0.1415]
[1763433473024,0.1492,3023.3,3021.9,0.1415]
[1763433475222,0.1492,3023.3,3021.6,0.00775615]
[1763433475417,1.15705703,3023.1,3021.6,0.00775615]
[1763433475821,1.9159793,3023.3,3021.6,0.00775615]
[1763433475822,2.629,3023.2,3021.6,0.00775615]
[1763433476217,1.30625703,3023.3,3021.6,0.00775615]
[1763433476218,0.1492,3023.3,3021.6,0.00775615]
[1763433476420,4.1872,3023.3,3021.6,0.00775615]
[1763433477322,5.34425703,3023.3,3021.6,0.00775615]
[1763433477630,0.00496319,3023.4,3021.6,0.00775615]
[1763433478522,0.00496319,3023.4,3021.6,0.89074814]
[1763433478918,0.00496319,3023.4,3021.7,0.88299199]
[1763433479315,0.00496319,3023.4,3021.9,0.1441]
[1763433479523,0.00422001,3024.0,3021.9,1.02709199]
[1763433479919,0.00422001,3024.0,3022.0,0.88299199]
[1763433480120,0.00422001,3024.0,3022.1,0.88299199]
[1763433480319,0.15482001,3024.0,3022.1,0.88299199]
[1763433480619,0.15482001,3024.0,3023.3,0.1441]
[1763433480620,0.00422001,3024.0,3023.3,0.1441]
[1763433481318,0.15482001,3024.0,3022.6,0.1441]
[1763433481821,0.00496319,3023.6,3023.0,0.00496319]
[1763433484723,0.00496319,3023.6,3022.7,0.00496319]
[1763433486131,0.00496319,3023.6,3022.9,1.78796068]
[1763433486425,0.00496319,3023.6,3022.7,0.00496319]
[1763433489133,0.00422001,3024.0,3023.1,1.78796068]
[1763433489320,0.00422001,3024.0,3022.7,0.00496319]
[1763433489520,0.00422001,3024.0,3023.3,0.1441]
[1763433490232,0.0091832,3024.0,3023.3,0.1441]
[1763433491031,0.0456832,3024.0,3022.7,0.00496319]
[1763433491235,0.0091832,3024.0,3022.9,1.78796068]
[1763433491430,0.0091832,3024.0,3023.3,0.1441]
[1763433491731,1.15705703,3025.1,3023.3,1.93206068]
[1763433492731,0.00320666,3024.5,3023.3,1.93206068]
[1763433493030,0.00320666,3024.5,3023.3,0.1441]
[1763433493231,0.00320666,3024.5,3024.0,0.1441]
[1763433493425,0.00320666,3024.5,3024.0,0.14667728]
[1763433493929,0.00236029,3025.1,3024.0,0.14667728]
[1763433494132,0.00236029,3025.1,3024.2,1.95731351]
[1763433494325,1.15705703,3026.2,3024.7,0.1441]
[1763433494628,1.15705703,3026.3,3024.7,0.1441]
[1763433494827,4.27705703,3026.3,3024.7,0.1441]
[1763433495133,3.12,3026.3,3025.1,0.00496319]
[1763433495329,0.00366646,3026.1,3025.1,0.00496319]
[1763433495534,0.03876646,3026.1,3025.1,0.00496319]
[1763433495726,1.19582349,3026.1,3025.1,0.00496319]
[1763433495922,0.03876646,3026.1,3025.1,0.00496319]
[1763433496335,1.15705703,3026.0,3025.1,0.00496319]
[1763433496527,1.19582349,3026.1,3025.1,0.00496319]
[1763433496726,1.15705703,3026.0,3025.1,0.00496319]
[1763433497331,8.33076646,3026.1,3024.1,0.26220236]
[1763433497332,1.15705703,3025.8,3024.1,0.26220236]
[1763433497637,1.30765703,3025.4,3024.1,0.26220236]
[1763433497835,1.15705703,3025.3,3024.0,0.00257728]
[1763433498039,1.15705703,3025.1,3024.0,0.00257728]
[1763433498237,1.15705703,3025.0,3024.0,0.00257728]
[1763433498429,0.1506,3024.7,3022.8,0.88299199]
[1763433498632,1.15705703,3024.5,3022.8,0.27121503]
[1763433498835,5.29705703,3024.6,3022.6,2.10141351]
[1763433499031,1.15705703,3024.6,3023.2,0.1496]
[1763433499230,0.1506,3024.7,3023.2,0.1496]
[1763433499431,1.30765703,3024.7,3023.6,0.00496319]
[1763433499638,1.15705703,3024.6,3023.6,0.00496319]
[1763433500042,1.30765703,3024.7,3023.6,0.00496319]
[1763433500443,0.1506,3024.7,3023.7,3.889]
[1763433500835,1.16202022,3024.8,3023.7,3.889]
[1763433501044,1.30812022,3024.8,3023.7,3.889]
[1763433501343,0.15106319,3024.8,3023.6,0.00496319]
[1763433501744,0.00496319,3024.8,3023.6,0.00496319]
[1763433502240,6.9381,3024.7,3023.6,0.00496319]
[1763433502439,1.15705703,3024.3,3023.6,0.00496319]
[1763433502640,1.15705703,3024.4,3023.6,0.00496319]
[1763433502837,1.15705703,3024.6,3023.6,0.00496319]
[1763433503145,1.15705703,3024.4,3023.6,0.00496319]
[1763433503439,1.30315703,3024.0,3023.2,0.00284231]
[1763433503644,1.15705703,3023.6,3021.9,0.40490156]
[1763433503835,9.44705703,3023.6,3021.9,0.40490156]
[1763433504236,9.44705703,3023.6,3021.9,0.1441]
[1763433504436,0.00496319,3023.1,3022.4,0.00496319]
[1763433504744,0.0074943,3023.1,3022.4,0.00824618]
[1763433505343,1.16455133,3023.1,3022.4,0.00824618]
[1763433505942,1.15705703,3023.0,3021.2,0.1441]
[1763433506136,1.20515703,3022.6,3020.7,0.88219666]
[1763433506337,1.20515703,3022.6,3020.7,0.26446566]
[1763433506546,1.20515703,3022.6,3020.6,0.88219666]
[1763433506949,1.15705703,3022.5,3021.3,0.00496319]
[1763433507252,0.0074943,3023.1,3021.7,1.95731351]
[1763433507661,0.0074943,3023.1,3021.9,1.95731351]
[1763433508451,0.0074943,3023.1,3022.1,0.88219666]
[1763433508648,0.0074943,3023.1,3022.0,0.88219666]
[1763433508842,1.30315703,3024.0,3022.0,0.88219666]
[1763433509438,1.30315703,3024.0,3022.1,0.88219666]
[1763433509439,0.1461,3024.0,3022.1,0.88219666]
[1763433509645,1.30315703,3024.0,3022.0,0.88219666]
[1763433509954,0.00496319,3023.3,3022.0,0.88219666]
[1763433510349,0.00496319,3023.3,3021.9,0.88219666]
[1763433510538,0.00496319,3023.3,3022.0,0.88219666]
[1763433511246,0.00496319,3023.3,3022.4,0.1483]
[1763433514453,0.00496319,3023.3,3022.0,0.88219666]
[1763433514454,0.07386319,3023.3,3022.0,0.88219666]
[1763433514652,0.00496319,3023.3,3021.8,0.88219666]
[1763433514950,0.00496319,3023.3,3021.8,2.83951017]
[1763433515141,0.00496319,3023.3,3021.8,1.95731351]
[1763433515341,0.00496319,3023.3,3021.8,2.83951017]
[1763433515543,0.00496319,3023.3,3021.8,1.95731351]
[1763433515945,0.00496319,3023.3,3021.8,2.83951017]
[1763433516354,0.00496319,3023.3,3021.8,1.95731351]
[1763433516660,0.00496319,3023.3,3021.8,2.83951017]
[1763433517150,0.00496319,3023.3,3022.0,0.88219666]
[1763433517750,0.00496319,3023.3,3022.3,1.95731351]
[1763433518058,0.00496319,3023.3,3022.6,0.1483]
[1763433520257,0.00254649,3024.0,3022.9,0.88219666]
[1763433520454,0.00254649,3024.0,3023.3,0.1483]
[1763433520849,2.84205703,3025.1,3023.3,0.1483]
[1763433520850,1.15705703,3025.1,3023.3,0.1483]
[1763433521153,1.7667793,3025.3,3023.3,0.1483]
[1763433521154,1.15705703,3025.3,3023.3,0.1483]
[1763433521362,0.00496319,3024.5,3024.0,0.1453]
[1763433521752,0.00496319,3024.5,3023.9,0.00496319]
[1763433521956,0.00822571,3024.5,3023.9,0.00496319]
[1763433522158,0.1379,3024.0,3022.9,0.0040103]
[1763433523052,1.15705703,3024.4,3022.9,0.0040103]
[1763433523363,0.00822571,3024.5,3023.3,2.1105767]
[1763433524055,0.00822571,3024.5,3023.4,0.88219666]
[1763433524453,2.35205703,3025.8,3024.0,0.1483]
[1763433524850,1.15705703,3025.8,3024.0,0.1483]
[1763433525053,4.04205703,3025.9,3024.0,0.1483]
[1763433525354,1.9046793,3026.1,3024.0,0.1483]
[1763433525355,1.15705703,3025.6,3024.0,0.1483]
[1763433525554,0.00496319,3025.1,3024.0,0.1483]
[1763433527365,0.00496319,3025.1,3024.0,1.03049666]
[1763433528957,0.00496319,3025.1,3024.0,0.1483]
[1763433529558,0.00496319,3025.1,3024.7,0.1483]
[1763433529962,0.00344881,3025.6,3024.7,0.1483]
[1763433530358,0.00344881,3025.6,3024.8,1.95731351]
[1763433531062,0.05752689,3026.6,3025.4,0.1483]
[1763433531257,0.1379,3026.8,3025.4,0.1483]
[1763433531765,0.1379,3026.8,3024.9,0.00496319]
[1763433532060,3.11437054,3026.7,3024.9,0.00818696]
[1763433532255,1.15705703,3026.5,3024.9,0.00818696]
[1763433532457,8.281,3026.5,3024.9,0.00818696]
[1763433532654,0.1415794,3026.8,3024.9,0.00818696]
[1763433532963,4.764,3026.7,3024.9,0.00818696]
[1763433533262,0.1415794,3026.8,3024.9,0.00818696]
[1763433533757,0.1415794,3026.8,3025.4,0.1483]
[1763433534064,0.0036794,3026.8,3025.4,0.1483]
[1763433535359,0.0896794,3026.8,3025.4,0.1483]
[1763433536257,0.0036794,3026.8,3025.4,0.1483]
[1763433536461,0.0036794,3026.8,3025.8,1.95731351]
[1763433536661,0.0036794,3026.8,3026.1,0.1365]
[1763433536863,2.45201406,3028.2,3026.3,1.95731351]
[1763433536864,0.05750417,3028.0,3026.3,1.95731351]
[1763433537069,2.31411406,3028.6,3026.1,0.1365]
[1763433537070,1.19165703,3028.7,3027.3,1.95731351]
[1763433537363,0.0346,3028.7,3026.8,0.14146319]
[1763433537561,0.0346,3028.7,3027.0,1.95731351]
[1763433537771,0.0346,3028.7,3027.5,2.09381351]
[1763433537955,0.03765692,3028.7,3028.2,0.1365]
[1763433538157,1.7667793,3030.0,3028.2,0.1365]
[1763433538158,1.15705703,3030.2,3028.2,0.1365]
[1763433538359,0.1371,3030.3,3028.2,0.1365]
[1763433538556,0.1371,3030.3,3028.9,0.00495483]
[1763433539271,0.14097126,3030.3,3028.9,0.00495483]
[1763433540765,5.767,3030.2,3028.9,0.00495483]
[1763433541168,0.14097126,3030.3,3028.9,0.00495483]
[1763433541371,8.274,3030.2,3028.9,0.00495483]
[1763433542770,0.00387126,3030.3,3028.9,0.14145483]
[1763433543074,1.9038793,3031.7,3028.9,0.14145483]
[1763433543075,0.1371,3031.7,3030.3,0.1365]
[1763433543467,0.1371,3031.7,3030.7,0.00495483]
[1763433543971,0.14112034,3031.7,3030.7,0.00805792]
[1763433544171,0.05742939,3031.6,3030.7,0.00805792]
[1763433544366,1.95731351,3031.5,3028.9,0.2375]
[1763433544573,1.95731351,3031.0,3028.9,0.1365]
[1763433544764,1.149,3030.9,3028.9,0.1365]
[1763433545266,1.82420869,3031.6,3028.9,0.1365]
[1763433545267,2.56,3030.8,3028.9,0.1365]
[1763433545462,1.95731351,3031.2,3029.5,0.00495483]
[1763433545463,0.00492695,3030.2,3029.5,0.00495483]
[1763433546277,0.00492695,3030.2,3029.6,0.1365]
[1763433546572,0.00402034,3031.7,3029.8,1.95731351]
[1763433546777,0.00402034,3031.7,3029.6,0.1365]
[1763433549763,0.00402034,3031.7,3029.6,2.1055]
[1763433552174,0.00402034,3031.7,3029.7,3.413]
[1763433552973,0.00402034,3031.7,3029.6,0.1365]
[1763433557165,0.00402034,3031.7,3030.1,2.34707944]
[1763433558578,0.00402034,3031.7,3029.6,0.1365]
[1763433558782,0.14032034,3031.7,3029.6,0.1365]
[1763433560771,2.34707944,3031.6,3029.6,0.1365]
[1763433560973,2.48377944,3031.0,3029.5,0.00495483]
[1763433561170,2.48377944,3031.0,3028.9,0.00303589]
[1763433561171,0.00495483,3030.6,3028.9,0.00303589]
[1763433562179,0.0687,3029.6,3027.5,0.1425]
[1763433562384,0.0687,3029.6,3026.1,2.48957944]
[1763433562385,8.749,3029.5,3026.1,2.48957944]
[1763433562683,0.1367,3028.8,3026.1,0.1425]
[1763433562881,6.81213647,3028.6,3026.1,0.1425]
[1763433563083,1.15705703,3028.5,3026.1,0.14504382]
[1763433563284,1.15705703,3028.3,3026.1,0.14504382]
[1763433563580,0.00495483,3027.6,3027.0,0.00495483]
[1763433566584,0.1367,3027.2,3026.1,0.00254382]
[1763433566788,1.16201186,3027.6,3026.1,0.00254382]
[1763433567082,0.00495483,3027.6,3026.8,1.78508914]
[1763433567279,0.00495483,3027.6,3026.4,0.1433]
[1763433567692,0.00495483,3027.6,3026.7,0.00495483]
[1763433567875,0.00239486,3028.6,3027.5,1.78508914]
[1763433568181,0.00239486,3028.6,3027.2,0.1433]
[1763433568575,0.00239486,3028.6,3026.8,1.78508914]
[1763433568990,0.00495483,3028.0,3026.8,1.78508914]
[1763433569783,0.14075483,3028.0,3026.7,0.00495483]
[1763433570079,1.78508914,3027.9,3026.7,0.00495483]
[1763433570284,1.78508914,3027.5,3026.7,0.00495483]
[1763433570477,1.78508914,3027.9,3026.7,0.00495483]
[1763433570687,4.114,3027.8,3026.7,0.00495483]
[1763433570980,8.262,3027.7,3026.7,0.00495483]
[1763433571383,1.78508914,3027.9,3026.7,0.00495483]
[1763433571384,0.14075483,3028.0,3026.7,0.00495483]
[1763433572083,0.00495483,3028.0,3026.7,0.00495483]
[1763433572285,0.00495483,3028.0,3026.9,1.78508914]
[1763433572885,0.00495483,3028.0,3027.3,1.78508914]
[1763433573084,0.00495483,3028.0,3026.7,1.79004397]
[1763433573988,0.00495483,3028.0,3027.2,0.1433]
[1763433575888,0.14075483,3028.0,3026.7,0.00495483]
[1763433576283,0.00495483,3028.0,3026.8,1.78508914]
[1763433576790,0.00495483,3028.0,3026.7,0.00495483]
[1763433577385,0.00495483,3028.0,3026.8,3.889]
[1763433578897,0.14075483,3028.0,3026.8,3.889]
[1763433579386,0.00495483,3028.0,3026.8,3.889]
[1763433579580,0.14075483,3028.0,3026.9,3.889]
[1763433579783,0.14075483,3028.0,3026.7,0.00495483]
[1763433580490,0.14075483,3028.0,3026.1,0.00254382]
[1763433580693,5.65982879,3027.9,3026.1,0.00254382]
[1763433581288,7.017,3027.8,3026.1,0.00254382]
[1763433581477,7.017,3027.8,3026.6,0.00495483]
[1763433582791,2.72828626,3028.0,3026.6,0.00495483]
[1763433582792,8.262,3027.7,3026.6,0.00495483]
[1763433582982,8.40275483,3028.0,3026.6,0.00495483]
[1763433583481,5.28575483,3028.0,3026.6,0.00495483]
[1763433584578,0.14075483,3028.0,3026.6,0.00495483]
[1763433584782,3.86675483,3028.0,3026.6,0.00495483]
[1763433585485,3.86675483,3028.0,3025.2,2.35182879]
[1763433586089,1.15705703,3027.7,3025.2,2.35182879]
[1763433586394,1.15705703,3027.5,3024.8,0.1425]
[1763433586686,1.15705703,3027.5,3026.3,0.00495483]
[1763433586994,4.305,3027.4,3026.4,0.1433]
[1763433587193,0.14075483,3028.0,3026.4,0.1433]
[1763433587488,0.00495483,3028.0,3026.4,0.1433]
[1763433588393,0.14075483,3028.0,3026.4,0.1433]
[1763433589993,1.29781186,3028.0,3026.3,0.00495483]
[1763433590296,1.15705703,3026.9,3026.3,0.00495483]
[1763433590599,2.92383633,3027.3,3026.4,0.1433]
[1763433590792,1.15705703,3027.4,3026.4,0.1433]
[1763433590991,4.305,3027.8,3026.4,0.1433]
[1763433590992,1.15705703,3027.3,3026.4,0.1433]
[1763433591183,1.15705703,3027.2,3026.4,0.1433]
[1763433591385,1.15705703,3027.2,3026.3,0.00495483]
[1763433591892,1.15705703,3027.1,3026.3,0.00495483]